{"text_format":"1","workbook":"xlsx","n_sheets":3,"sheets":["Honorare","Aufwandsentschädigungen","Sachausgaben"],"not_rendered":{"charts":0,"images":1,"macros":1,"external_links":0,"defined_names":6,"comments":0,"pivot_tables":0},"unopened":[],"bounds":{"document_bytes":16777216,"sheet_cells":100000,"rows_first":2000,"rows_last":500,"rows_between":2000,"halvings":0,"cell_chars":16384,"cell_head_chars":4096},"cells_cut":0,"cells_raw":0,"read":"whole","date_system":"1900"}

{"sheet":"Honorare","index":0,"n_rows":29,"n_cols":10,"rows_kept":29,"cut":false,"hidden":false,"merged":[[28,3,28,4],[3,2,3,3],[23,0,23,8],[3,0,3,1],[2,0,2,1],[0,3,0,4],[0,0,0,2],[26,1,26,9],[27,4,27,9],[27,1,27,2],[2,4,2,9],[2,2,2,3]]}
["Ausgabenart: Honorare"]
[]
["Belegliste zum Einzelprojekt:",null,null,null,"Bitte listen Sie alle Ausgaben in chronologischer Reihenfolge auf und \nverwenden für jede Ausgabenart ein separates Blatt!"]
["Förderkennzeichen:"]
[]
["lfd. Nr.","Beleg-Nr. \n(RG-Nr./int. Beleg-Nr.)","Art der Ausgabe","Empfänger","Zahlungsgrund","Datum der Durchführung","Anzahl der Stunden","Stundensatz","Datum der Zahlung","Zahlbetrag"]
[1,"z. B. 2020-1234","Honorar","z. B. Marie Musterfrau","z. B. Pädag. Begleitung","z.B. 12.11.2020","z. B. 5","z. B. 35","z.B. 15.06.2020","z. B. 175,00 €"]
[2,null,"Honorar",null,null,null,null,null,null,{"$f":"G8*H8","v":0}]
[3,null,"Honorar",null,null,null,null,null,null,{"$f":"G9*H9","v":0}]
[4,null,"Honorar",null,null,null,null,null,null,0]
[5,null,"Honorar",null,null,null,null,null,null,0]
[6,null,"Honorar",null,null,null,null,null,null,0]
[7,null,"Honorar",null,null,null,null,null,null,0]
[8,null,"Honorar",null,null,null,null,null,null,0]
[9,null,"Honorar",null,null,null,null,null,null,0]
[10,null,"Honorar",null,null,null,null,null,null,0]
[11,null,"Honorar",null,null,null,null,null,null,0]
[12,null,"Honorar",null,null,null,null,null,null,0]
[13,null,"Honorar",null,null,null,null,null,null,0]
[14,null,"Honorar",null,null,null,null,null,null,0]
[15,null,"Honorar",null,null,null,null,null,null,0]
[16,null,"Honorar",null,null,null,null,null,null,{"$f":"G22*H22","v":0}]
[]
["Gesamtsumme",null,null,null,null,null,null,null,null,{"$f":"SUM(J8:J23)","v":0}]
[]
[]
[null,"Hinweis: Die Beleglisten müssen nicht zwangsläufig von einer vertretungsberechtigten Person des LZE unterschrieben werden. Es sollte die Person sein, die mit der administrativen Abwicklung betraut worden ist."]
[null,"Unterschrift:"]
[null,"Vor- und Nachname  in Druckbuchstaben: ",null,null,null,null,null,null,"Datum:"]

{"sheet":"Aufwandsentschädigungen","index":1,"n_rows":29,"n_cols":10,"rows_kept":29,"cut":false,"hidden":false,"merged":[[0,0,0,3],[27,1,27,2],[26,1,26,9],[27,4,27,9],[28,3,28,4],[2,0,2,1],[2,2,2,3],[2,4,2,9],[3,0,3,1],[3,2,3,3],[23,0,23,8]]}
["Ausgabenart: Aufwandsentschädigungen"]
[]
["Belegliste zum Einzelprojekt:",null,null,null,"Bitte listen Sie alle Ausgaben in chronologischer Reihenfolge auf und \nverwenden für jede Ausgabenart ein separates Blatt!"]
["Förderkennzeichen:"]
[]
["lfd. Nr.","Beleg-Nr. \n(RG-Nr./int. Beleg-Nr.)","Art der Ausgabe","Empfänger","Zahlungsgrund","Anzahl Stunden","Stundensatz","Datum\nDurchführung","Datum der Zahlung","Zahlbetrag"]
[1,"z. B.2020-1234","Aufwandsentschädigung","z. B. Emil Engagement","z.B. Kinderbetreuung","z. B. 5",5,"z. B. 25.06.2020","z. B. 01.07.2020","z. B. 25,00 €"]
[2,null,"Aufwandsentschädigung",null,null,null,5,null,null,{"$f":"F8*5","v":0}]
[3,null,"Aufwandsentschädigung",null,null,null,5,null,null,0]
[4,null,"Aufwandsentschädigung",null,null,null,5,null,null,0]
[5,null,"Aufwandsentschädigung",null,null,null,5,null,null,0]
[6,null,"Aufwandsentschädigung",null,null,null,5,null,null,0]
[7,null,"Aufwandsentschädigung",null,null,null,5,null,null,0]
[8,null,"Aufwandsentschädigung",null,null,null,5,null,null,0]
[9,null,"Aufwandsentschädigung",null,null,null,5,null,null,0]
[10,null,"Aufwandsentschädigung",null,null,null,5,null,null,0]
[11,null,"Aufwandsentschädigung",null,null,null,5,null,null,0]
[12,null,"Aufwandsentschädigung",null,null,null,5,null,null,0]
[13,null,"Aufwandsentschädigung",null,null,null,5,null,null,0]
[14,null,"Aufwandsentschädigung",null,null,null,5,null,null,0]
[15,null,"Aufwandsentschädigung",null,null,null,5,null,null,0]
[16,null,"Aufwandsentschädigung",null,null,null,5,null,null,0]
[null,null,null,null,null,null,null,null,null,0]
["Gesamtsumme",null,null,null,null,null,null,null,null,{"$f":"SUM(J8:J23)","v":0}]
[]
[]
[null,"Hinweis: Die Beleglisten müssen nicht zwangsläufig von einer vertretungsberechtigten Person des LZE unterschrieben werden. Es sollte die Person sein, die mit der administrativen Abwicklung betraut worden ist."]
[null,"Unterschrift:"]
[null,"Vor- und Nachname  in Druckbuchstaben: ",null,null,null,null,null,null,"Datum:"]

{"sheet":"Sachausgaben","index":2,"n_rows":29,"n_cols":8,"rows_kept":29,"cut":false,"hidden":false,"merged":[[0,0,0,2],[0,3,0,4],[25,1,25,7],[28,3,28,4],[22,0,22,6],[27,4,27,7],[27,1,27,2],[2,2,2,3],[2,4,2,7],[3,2,3,3],[2,0,2,1],[3,0,3,1]]}
["Ausgabenart: Sachausgaben"]
[]
["Belegliste zum Einzelprojekt:",null,null,null,"Bitte listen Sie alle Ausgaben in chronologischer Reihenfolge auf und \nverwenden für jede Ausgabenart ein separates Blatt!"]
["Förderkennzeichen:"]
[]
["lfd. Nr.","Beleg-Nr. \n(RG-Nr./int. Beleg-Nr.)","Art der Ausgabe","Empfänger","Zahlungsgrund","Zeitraum","Datum der Zahlung","Zahlbetrag"]
[1,"z. B. 2020-1212","z. B. Technik/Miete","z. B. Spacebase GmbH","z. B. Raummiete","z. B. 12.-15.12.2020","z. B. 15.06.2020","z. B. 200,00 €"]
[3,"z. B. 2020-2345","z. B. Verbrauchsmaterial","z. B. McPaper","z. B. Stifte, Pinsel, Farben","z. B. 12.-15.12.2020","z. B. 15.10.2020","z. B. 200,00 €"]
[4]
[5]
[6]
[7]
[8]
[9]
[10]
[11]
[12]
[13]
[14]
[15]
[16]
[]
["Gesamtsumme",null,null,null,null,null,null,{"$f":"SUM(H9:H22)","v":0}]
[]
[]
[null,"Hinweis: Die Beleglisten müssen nicht zwangsläufig von einer vertretungsberechtigten Person des LZE unterschrieben werden. Es sollte die Person sein, die mit der administrativen Abwicklung betraut worden ist."]
[]
[null,"Unterschrift:"]
[null,"Vor- und Nachname  in Druckbuchstaben: ",null,null,null,null,"Datum:"]